bitfinex/quotes_SOLUSD_20220101
["timestamp","ask_amount","ask_price","bid_price","bid_amount"]
[1641015394435,1.62246836,174.29,174.2,9.8438]
[1641015395639,10.23246836,174.29,174.2,9.8438]
[1641015396041,1.62246836,174.29,174.2,9.8438]
[1641015397245,10.23226836,174.3,174.2,9.8438]
[1641015397848,10.23226836,174.3,174.2,10.3438]
[1641015398246,10.23226836,174.3,174.2,10.6038]
[1641015398647,1.62246836,174.3,174.2,10.6038]
[1641015400253,1.62246836,174.3,174.2,10.1038]
[1641015400753,1.62246836,174.3,174.2,9.8438]
[1641015400948,1.62246836,174.3,174.2,10.3438]
[1641015401550,1.62246836,174.29,174.2,10.6038]
[1641015401750,1.62246836,174.29,174.2,10.3438]
[1641015402353,2.85736836,174.29,174.2,10.1038]
[1641015402755,1.62246836,174.29,174.2,9.8438]
[1641015402953,1.62246836,174.28,174.2,10.1038]
[1641015403768,1.62246836,174.29,174.2,10.1038]
[1641015404372,10.23246836,174.29,174.2,1.4939]
[1641015404770,10.23246836,174.29,174.2,1.2339]
[1641015405173,1.62246836,174.28,174.2,1.4939]
[1641015405477,10.23326836,174.28,174.2,1.4939]
[1641015406373,1.62246836,174.27,174.19,23.03422458]
[1641015406573,10.23336836,174.27,174.19,23.03422458]
[1641015407576,10.23336836,174.27,174.19,23.29422458]
[1641015407878,10.23336836,174.27,174.19,23.03422458]
[1641015408077,10.23336836,174.27,174.19,23.29422458]
[1641015408977,10.23336836,174.27,174.19,23.03422458]
[1641015409781,1.62246836,174.26,174.19,23.03422458]
[1641015410078,1.62246836,174.26,174.14,1.2339]
[1641015410579,2.12246836,174.26,174.14,1.2339]
[1641015410779,1.2539,174.25,174.14,1.2339]
[1641015410980,2.87636836,174.25,174.15,30.64726562]
[1641015411479,8.6132,174.23,174.15,30.64726562]
[1641015411680,8.6132,174.23,174.15,30.90726562]
[1641015412982,8.6132,174.23,174.14,1.2339]
[1641015413187,8.6132,174.23,174.12,152.0562]
[1641015413385,8.6132,174.23,174.12,153.2964]
[1641015413585,8.8732,174.23,174.12,153.2964]
[1641015413791,8.6132,174.23,174.12,153.2964]
[1641015413994,9.8937,174.23,174.13,28.41016727]
[1641015414390,10.3937,174.23,174.13,28.41016727]
[1641015414592,8.6139,174.21,174.13,28.41016727]
[1641015415590,8.6139,174.21,174.13,28.67016727]
[1641015415793,8.6139,174.21,174.13,28.41016727]
[1641015416202,10.23636836,174.21,174.13,28.41016727]
[1641015416792,8.6139,174.21,174.13,28.41016727]
[1641015417794,1.3608,174.21,174.13,28.41016727]
[1641015418297,1.3608,174.21,174.13,28.67016727]
[1641015418895,1.3608,174.21,174.13,37.28346727]
[1641015419201,8.6134,174.22,174.13,28.41016727]
[1641015419994,8.6134,174.22,174.13,37.02346727]
[1641015420394,8.6129,174.23,174.13,37.28346727]
[1641015421195,8.6129,174.23,174.14,1.2945]
[1641015421596,8.8729,174.23,174.14,1.2945]
[1641015421796,8.8729,174.23,174.13,28.41016727]
[1641015421999,8.8729,174.23,174.13,28.67016727]
[1641015422798,8.8729,174.23,174.13,28.41016727]
[1641015422996,1.2708,174.22,174.13,28.41016727]
[1641015423197,9.8844,174.22,174.13,28.41016727]
[1641015423399,10.1444,174.22,174.13,28.41016727]
[1641015424100,10.1444,174.22,174.13,28.67016727]
[1641015425903,10.6444,174.22,174.13,28.67016727]
[1641015426501,10.1444,174.22,174.13,28.67016727]
[1641015429408,11.76686836,174.22,174.13,28.67016727]
[1641015430433,11.76686836,174.22,174.13,28.41016727]
[1641015431635,11.50686836,174.22,174.13,28.67016727]
[1641015431835,2.89326836,174.22,174.13,37.28326727]
[1641015432334,1.2708,174.22,174.13,37.78326727]
[1641015432936,1.62246836,174.23,174.13,37.78326727]
[1641015433136,1.62246836,174.23,174.14,2.68739368]
[1641015433336,1.62246836,174.24,174.18,8.6097]
[1641015433537,1.62246836,174.24,174.18,8.8697]
[1641015433737,1.62246836,174.24,174.18,9.3697]
[1641015434140,1.62246836,174.29,174.18,8.8697]
[1641015434337,1.62246836,174.29,174.2,22.9016667]
[1641015434537,1.88246836,174.29,174.2,23.1616667]
[1641015434938,1.2401,174.33,174.2,23.1616667]
[1641015435138,28.7034,174.32,174.2,22.9016667]
[1641015435338,0.5,174.32,174.2,23.1616667]
[1641015435539,1.2689,174.31,174.2,23.1616667]
[1641015435740,2.89136836,174.31,174.2,23.1616667]
[1641015435940,3.39136836,174.31,174.2,23.1616667]
[1641015436340,3.65136836,174.31,174.2,23.1616667]
[1641015436642,8.6117,174.26,174.2,23.1616667]
[1641015438246,8.6117,174.26,174.2,22.9016667]
[1641015439144,8.8717,174.26,174.2,22.9016667]
[1641015439345,9.3717,174.26,174.2,22.9016667]
[1641015439544,8.8717,174.26,174.15,9.9132]
[1641015439752,9.3717,174.26,174.15,1.3009]
[1641015439948,9.3717,174.26,174.15,2.72759368]
[1641015440353,1.3377,174.25,174.15,2.72759368]
[1641015440552,8.6128,174.24,174.16,27.88687546]
[1641015440975,8.6128,174.24,174.16,28.14687546]
[1641015443357,9.1128,174.24,174.16,28.14687546]
[1641015443557,8.6128,174.24,174.16,28.14687546]
[1641015443761,9.1128,174.24,174.16,28.14687546]
[1641015443959,8.6128,174.24,174.16,28.14687546]
[1641015444158,1.3377,174.25,174.16,28.14687546]
[1641015444958,1.3377,174.25,174.17,1.2519]
[1641015445362,8.6121,174.25,174.17,1.5119]
[1641015446965,9.3721,174.25,174.17,1.5119]
[1641015447165,9.3721,174.25,174.14,147.3725]
[1641015447363,9.3721,174.25,174.14,73.9307]
[1641015447574,8.8721,174.25,174.14,73.9307]
[1641015447766,9.3721,174.25,174.14,73.9307]
[1641015447968,8.6153,174.19,174.14,73.9307]
[1641015448167,8.6153,174.19,174.09,27.99417133]
[1641015448366,8.6153,174.19,174.1,1.2561]
[1641015449099,10.23776836,174.19,174.1,1.2561]
[1641015449295,10.23776836,174.19,174.08,1.42669368]
[1641015449492,10.99776836,174.19,174.07,75.3232]
[1641015449694,8.6177,174.15,174.07,76.6109]
[1641015450293,8.6177,174.15,174.07,103.35940039]
[1641015450907,8.8777,174.15,174.07,103.35940039]
[1641015451095,8.6177,174.15,174.07,103.35940039]
[1641015451293,8.8777,174.15,174.07,103.35940039]
[1641015452095,9.3777,174.15,174.07,103.35940039]
[1641015452294,8.8777,174.15,174.07,103.35940039]
[1641015452896,9.3777,174.15,174.07,103.35940039]
[1641015453501,0.26,174.15,174.07,103.35940039]
[1641015453698,30.3707,174.17,174.07,103.35940039]
[1641015453904,1.2604,174.24,174.07,103.85940039]
[1641015454098,1.5204,174.24,174.07,103.85940039]
[1641015454301,2.0204,174.24,174.07,103.85940039]
[1641015454497,2.0204,174.24,174.07,104.11940039]
[1641015454698,1.2448,174.23,174.07,104.11940039]
[1641015454898,1.7448,174.23,174.07,112.73560039]
[1641015455597,1.7448,174.23,174.07,111.97560039]
[1641015455598,2.57816743,174.23,174.07,111.97560039]
[1641015456498,2.83816743,174.23,174.07,111.97560039]
[1641015456901,3.33816743,174.23,174.07,111.97560039]
[1641015457502,2.0048,174.23,174.07,111.97560039]
[1641015458300,3.33816743,174.23,174.07,111.97560039]
[1641015459300,3.33816743,174.23,174.07,112.23560039]
[1641015459503,3.33816743,174.23,174.07,112.73560039]
[1641015459900,3.07816743,174.23,174.07,112.73560039]
[1641015460101,1.2448,174.23,174.07,112.73560039]
[1641015460802,1.7448,174.23,174.07,111.97560039]
[1641015461003,37.01516743,174.23,174.07,111.97560039]
[1641015461807,35.6818,174.23,174.07,111.97560039]
[1641015462007,35.9418,174.23,174.07,111.97560039]
[1641015462607,35.9418,174.23,174.07,112.47560039]
[1641015462808,30.8248,174.23,174.07,35.86470039]
[1641015463107,30.8248,174.23,174.07,35.36470039]
[1641015463307,30.5648,174.23,174.08,1.3601]
[1641015463507,30.5648,174.23,174.15,26.87708527]
[1641015463708,30.0648,174.23,174.15,26.87708527]
[1641015463909,30.5648,174.23,174.15,26.87708527]
[1641015464408,1.62246836,174.19,174.11,8.6158]
[1641015464610,1.88246836,174.19,174.06,73.4436]
[1641015464808,1.62246836,174.17,174.06,73.4436]
[1641015465008,1.88246836,174.17,174.06,73.4436]
[1641015465410,1.88246836,174.17,174.07,30.26083464]
[1641015465610,1.62246836,174.16,174.1,8.6162]
[1641015466109,0.26,174.16,174.1,8.6162]
[1641015466509,1.88246836,174.17,174.1,8.6162]
[1641015469814,1.88246836,174.17,174.07,31.57523464]
[1641015469815,0.26,174.17,174.08,8.6169]
[1641015470013,0.5,174.17,174.08,8.6169]
[1641015470612,1.62246836,174.16,174.08,8.6169]
[1641015470818,1.62246836,174.16,174.04,94.5]
[1641015471013,2.38246836,174.16,174.04,87.0]
[1641015471214,1.62246836,174.13,174.04,87.0]
[1641015471416,2.12246836,174.13,174.04,87.0]
[1641015471615,2.38246836,174.13,174.04,87.0]
[1641015471814,8.6203,174.09,174.0,94.5]
[1641015472015,14.8203,174.09,174.0,94.5]
[1641015472218,28.82,174.08,174.0,94.5]
[1641015472416,29.58,174.08,174.0,94.5]
[1641015473017,31.20246836,174.08,173.94,25.05249037]
[1641015473218,8.624,174.02,173.94,25.05249037]
[1641015473420,28.82,174.06,173.94,25.05249037]
[1641015473618,0.26,174.02,173.94,25.05249037]
[1641015474223,31.20246836,174.06,173.94,25.05249037]
[1641015474619,8.624,174.02,173.94,33.67599037]
[1641015475153,30.94246836,174.06,173.94,35.10268405]
[1641015475547,30.94246836,174.06,173.94,33.67599037]
[1641015475949,8.6221,174.05,173.95,1.42669368]
[1641015476149,1.62246836,174.08,174.0,8.6205]
[1641015476349,1.62246836,174.11,174.01,29.67963847]
[1641015476551,1.62246836,174.11,174.01,31.10633215]
[1641015477049,8.6195,174.11,174.01,31.10633215]
[1641015477249,9.1195,174.11,174.01,29.67963847]
[1641015477652,11.00196836,174.11,174.01,29.67963847]
[1641015477850,10.50196836,174.11,174.01,29.67963847]
[1641015478250,10.50196836,174.11,174.01,38.29963847]
[1641015478851,10.24196836,174.11,174.01,38.29963847]
[1641015479051,10.24196836,174.11,174.01,38.55963847]
[1641015479251,8.6195,174.11,174.01,38.55963847]
[1641015479952,9.1195,174.11,174.01,29.67963847]
[1641015480155,37.9395,174.11,174.01,29.67963847]
[1641015480352,39.56196836,174.11,174.01,29.67963847]
[1641015480552,39.56196836,174.11,173.99,8.6206]
[1641015481253,1.62246836,174.1,173.99,8.6206]
[1641015481455,8.6211,174.07,173.99,8.6206]
[1641015481657,8.6211,174.07,174.0,22.80959984]
[1641015481854,0.26,174.07,174.0,22.80959984]
[1641015482457,1.62246836,174.09,174.0,31.43019984]
[1641015482659,8.8806,174.09,174.0,22.80959984]
[1641015482856,9.3806,174.09,174.0,22.80959984]
[1641015483861,9.3806,174.09,173.96,104.3834]
[1641015484057,9.3806,174.09,173.96,95.7613]
[1641015484257,28.82,174.08,173.96,95.7613]
[1641015484555,8.6232,174.03,173.96,95.7613]
[1641015484758,8.6232,174.03,173.96,94.5]
[1641015484956,8.8832,174.03,173.96,124.10153784]
[1641015485558,8.8832,174.03,173.96,94.5]
[1641015485759,9.3832,174.03,173.96,94.5]
[1641015486458,28.82,174.02,173.96,94.5]
[1641015486659,37.4441,174.01,173.96,122.09992216]
[1641015486859,37.4441,174.01,173.96,94.5]
[1641015487062,37.9441,174.01,173.96,94.5]
[1641015489058,38.2041,174.01,173.96,94.5]
[1641015489461,37.7041,174.01,173.96,94.5]
[1641015490262,37.4441,174.01,173.96,94.5]
[1641015490460,37.9441,174.01,173.96,94.5]
[1641015490861,37.4441,174.01,173.96,94.5]
[1641015491363,37.9441,174.01,173.96,94.5]
[1641015492460,38.2041,174.01,173.96,94.5]
[1641015496365,39.53746743,174.01,173.96,94.5]
[1641015496963,38.2041,174.01,173.96,94.5]
[1641015498267,37.9441,174.01,173.96,94.5]
[1641015498666,37.4441,174.01,173.96,94.5]
[1641015499466,37.9441,174.01,173.96,94.5]
[1641015500267,37.9441,174.01,173.91,28.20256365]
[1641015500471,38.2041,174.01,173.91,28.20256365]
[1641015501068,37.7041,174.01,173.91,28.46256365]
[1641015501365,38.2041,174.01,173.91,28.20256365]
[1641015502566,38.2041,174.01,173.89,77.713]
[1641015503570,37.7041,174.01,173.9,27.48083294]
[1641015503869,38.2041,174.01,173.9,27.48083294]
[1641015504270,39.82656836,174.01,173.9,27.48083294]
[1641015505268,38.2041,174.01,173.9,27.48083294]
[1641015506870,39.82656836,174.01,173.9,27.48083294]
[1641015508172,39.56656836,174.01,173.9,27.48083294]
[1641015508797,40.89993579,174.01,173.9,27.48083294]
[1641015508997,40.89993579,174.01,173.89,77.713]
[1641015509199,37.9441,174.01,173.89,77.713]
[1641015509396,39.1919,174.01,173.89,77.713]
[1641015509599,39.4519,174.01,173.89,77.713]
[1641015510803,39.1919,174.01,173.89,77.713]
[1641015511702,40.81436836,174.01,173.89,77.713]
[1641015512003,41.07436836,174.01,173.89,77.713]
[1641015514204,41.07436836,174.01,173.64,12.28065893]
[1641015514405,50.02373579,174.01,173.84,94.5]
[1641015514805,55.73985468,174.01,173.84,94.5]
[1641015515305,1.62246836,173.97,173.84,25.82162064]
[1641015515506,8.63,173.91,173.84,25.82162064]
[1641015515907,9.39,173.91,173.8,1.2467]
[1641015516705,8.89,173.91,173.8,1.5067]
[1641015516905,8.89,173.91,173.81,28.24580011]
[1641015517105,8.89,173.91,173.81,28.50580011]
[1641015517304,8.89,173.91,173.81,29.93249379]
[1641015517505,8.63,173.91,173.81,29.93249379]
[1641015517705,8.63,173.91,173.81,29.00580011]
[1641015518206,8.63,173.91,173.82,8.6284]
[1641015520008,8.63,173.91,173.82,8.8884]
[1641015520207,8.6283,173.92,173.82,8.8884]
[1641015520607,8.8883,173.92,173.82,8.8884]
[1641015521010,8.8883,173.92,173.82,9.9339]
[1641015521510,8.8883,173.92,173.82,10.1939]
[1641015522108,8.8883,173.92,173.82,9.9339]
[1641015522507,8.8883,173.92,173.82,1.3055]
[1641015522708,9.3883,173.92,173.82,1.3055]
[1641015523513,9.3883,173.92,173.82,1.5655]
[1641015524009,8.8883,173.92,173.82,10.1942]
[1641015524208,8.8883,173.92,173.82,1.5655]
[1641015524808,8.6283,173.92,173.82,1.5655]
[1641015525909,8.6283,173.92,173.82,1.3055]
[1641015526112,8.8883,173.92,173.82,1.3055]
[1641015527009,9.3883,173.92,173.82,1.3055]
[1641015527212,8.8883,173.92,173.82,1.5655]
[1641015527811,9.3883,173.92,173.82,1.5655]
[1641015528616,9.3883,173.92,173.82,1.3055]
[1641015529112,9.3883,173.92,173.81,28.24580011]
[1641015529711,9.3883,173.92,173.82,1.3113]
[1641015530315,9.3883,173.92,173.82,1.5713]
[1641015530513,8.8883,173.92,173.82,1.5713]
[1641015530913,9.3883,173.92,173.82,1.5713]
[1641015531115,9.3883,173.92,173.82,1.3113]
[1641015531314,9.3883,173.92,173.82,1.5713]
[1641015532515,9.3883,173.92,173.82,1.3113]
[1641015532919,9.3883,173.92,173.82,1.5713]
[1641015533314,9.3883,173.92,173.82,1.3113]
[1641015533516,9.3883,173.92,173.82,1.5713]
[1641015534216,9.3883,173.92,173.82,2.0713]
[1641015534916,9.3883,173.92,173.82,1.5713]
[1641015535416,9.3883,173.92,173.82,1.3113]
[1641015536615,9.3883,173.92,173.82,1.5713]
[1641015537016,10.6451,173.92,173.82,1.5713]
[1641015537617,9.3883,173.92,173.82,1.5713]
[1641015544153,9.3883,173.92,173.82,10.2002]
[1641015544351,9.3883,173.92,173.82,10.7002]
[1641015544550,9.3883,173.92,173.82,10.2002]
[1641015545655,9.1283,173.92,173.82,10.2002]
[1641015545951,8.6283,173.92,173.82,10.7002]
[1641015546153,8.6277,173.93,173.82,10.7002]
[1641015546953,8.8877,173.93,173.82,10.4402]
[1641015548553,8.8877,173.93,173.82,10.7002]
[1641015549155,9.3877,173.93,173.82,10.2002]
[1641015549356,9.3877,173.93,173.82,10.7002]
[1641015549554,9.3877,173.93,173.82,10.2002]
[1641015549752,9.3877,173.93,173.82,1.5713]
[1641015550353,9.3877,173.93,173.82,2.0713]
[1641015550757,9.3877,173.93,173.82,10.7002]
[1641015551156,30.44246836,173.95,173.83,1.42669368]
[1641015551359,10.24946836,173.95,173.83,9.80269368]
[1641015551558,1.62246836,173.95,173.83,10.06269368]
[1641015551758,1.62246836,173.96,173.84,1.42669368]
[1641015551961,1.62246836,173.96,173.84,3.24899368]
[1641015552257,1.62246836,173.96,173.84,12.15383862]
[1641015552458,6.836e-05,174.01,173.85,1.42669368]
[1641015552657,6.836e-05,174.01,173.86,75.3613]
[1641015552858,6.836e-05,174.01,173.86,75.8613]
[1641015553058,6.836e-05,174.01,173.88,27.12771235]
[1641015553260,6.836e-05,174.01,173.95,27.4508908]
[1641015553658,8.8838,174.02,173.95,27.7108908]
[1641015553858,0.26,174.02,173.95,27.7108908]
[1641015554060,29.005,174.06,173.9,1.2828]
[1641015554259,28.7482,174.05,173.9,1.2828]
[1641015554465,29.2482,174.05,173.9,2.0428]
[1641015554660,29.5082,174.05,173.9,1.7828]
[1641015554859,8.6249,173.99,173.9,1.2828]
[1641015555059,8.8849,173.99,173.9,29.08006375]
[1641015556760,9.3849,173.99,173.9,29.08006375]
[1641015557261,9.3849,173.99,173.9,27.79726375]
[1641015558862,9.3849,173.99,173.88,75.0873]
[1641015559063,9.3849,173.99,173.88,73.8148]
[1641015559863,9.3849,173.99,173.89,26.02667063]
[1641015564771,9.1249,173.99,173.89,26.02667063]
[1641015565470,9.1249,173.99,173.89,26.28667063]
[1641015566973,9.3849,173.99,173.89,26.02667063]
[1641015571273,9.3849,173.99,173.89,34.91237063]
[1641015571473,8.8849,173.99,173.89,34.91237063]
[1641015571873,8.8849,173.99,173.89,35.41237063]
[1641015573077,8.6249,173.99,173.89,35.41237063]
[1641015573278,8.6234,174.03,173.89,36.83906431]
[1641015573479,3.26716595,174.05,173.89,36.83906431]
[1641015573879,3.26716595,174.1,173.89,36.83906431]
[1641015574082,3.26716595,174.1,173.98,8.6209]
[1641015574286,3.26716595,174.1,173.99,28.47745249]
[1641015574481,3.76716595,174.1,173.99,28.73745249]
[1641015574680,3.76716595,174.1,173.9,2.5585]
[1641015574883,1.3496,174.09,173.95,79.1751]
[1641015575083,1.6096,174.09,173.95,79.4351]
[1641015575282,2.1096,174.09,173.95,79.4351]
[1641015575482,1.8496,174.09,173.96,26.72846128]
[1641015575685,8.6221,174.06,173.96,26.72846128]
[1641015576010,8.6221,174.06,173.96,26.98846128]
[1641015576182,8.6221,174.06,173.96,27.48846128]
[1641015576585,8.6221,174.06,173.96,26.98846128]
[1641015576785,9.1221,174.06,173.96,26.98846128]
[1641015576985,38.2021,174.06,173.96,26.98846128]
[1641015577584,9.3821,174.06,173.96,26.98846128]
[1641015578386,9.3821,174.06,173.96,26.72846128]
[1641015578990,9.3821,174.06,173.96,26.98846128]
[1641015579390,9.3821,174.06,173.96,26.72846128]
[1641015579791,9.3821,174.06,173.96,26.98846128]
[1641015579990,9.3821,174.06,173.96,26.72846128]
[1641015580593,9.1221,174.06,173.96,26.98846128]
[1641015580792,9.1221,174.06,173.96,35.61056128]
[1641015580992,9.1221,174.06,173.96,26.98846128]
[1641015581391,9.1221,174.06,173.96,26.72846128]
[1641015581593,9.1221,174.06,173.96,26.98846128]
[1641015581992,9.3821,174.06,173.96,26.98846128]
[1641015582194,9.3821,174.06,173.96,35.61056128]
[1641015582395,9.3821,174.06,173.96,36.11056128]
[1641015582999,8.8821,174.06,173.96,36.11056128]
[1641015585522,9.3821,174.06,173.96,35.35056128]
[1641015585721,9.3821,174.06,173.96,26.72846128]
[1641015585921,9.3821,174.06,173.96,27.22846128]
[1641015586122,8.8821,174.06,173.96,27.22846128]
[1641015586920,8.8821,174.06,173.96,27.48846128]
[1641015587320,8.8821,174.06,173.96,27.22846128]
[1641015587521,9.3821,174.06,173.96,26.98846128]
[1641015587721,9.3821,174.06,173.96,35.61056128]
[1641015589121,9.3821,174.06,173.96,26.98846128]
[1641015591325,9.3821,174.06,173.96,26.72846128]
[1641015591728,9.3821,174.06,173.96,35.35066128]
[1641015591925,8.8821,174.06,173.96,35.35066128]
[1641015592325,9.3821,174.06,173.96,35.35066128]
[1641015592726,8.8821,174.06,173.96,35.61066128]
[1641015592925,8.8821,174.06,173.96,36.11066128]
[1641015594629,8.8821,174.06,173.96,37.42496128]
[1641015595330,9.3821,174.06,173.96,28.04276128]
[1641015595528,9.3821,174.06,173.96,26.72846128]
[1641015596030,9.3821,174.06,173.91,1.2949]
[1641015596428,9.3821,174.06,173.91,2.0549]
[1641015596631,1.3159,174.05,173.92,8.6239]
[1641015596829,8.6245,174.0,173.92,39.02828973]
[1641015597029,8.8845,174.0,173.92,39.02828973]
[1641015597430,8.8845,174.0,173.91,1.2949]
[1641015597629,9.3845,174.0,173.91,1.2949]
[1641015601432,9.1245,174.0,173.91,1.2949]
[1641015602833,9.3845,174.0,173.91,1.2949]
[1641015603438,9.3845,174.0,173.91,1.7949]
[1641015603635,9.3845,174.0,173.91,3.22159368]
[1641015604237,9.3845,174.0,173.91,2.72159368]
[1641015604438,9.3845,174.0,173.91,1.2949]
[1641015605544,9.1245,174.0,173.91,1.2949]
[1641015605745,8.6245,174.0,173.91,10.1794]
[1641015605945,8.6245,174.0,173.91,12.10609368]
[1641015606747,8.6245,174.0,173.91,10.6794]
[1641015606952,8.8845,174.0,173.91,10.6794]
[1641015607354,8.8845,174.0,173.91,12.10609368]
[1641015607750,8.8845,174.0,173.91,9.9194]
[1641015607949,9.3845,174.0,173.91,9.9194]
[1641015608350,8.8845,174.0,173.91,9.9194]
[1641015608553,8.8845,174.0,173.91,10.1794]
[1641015608749,8.8845,174.0,173.91,10.6794]
[1641015610586,8.6245,174.0,173.91,10.6794]
[1641015610789,9.1245,174.0,173.91,9.9194]
[1641015610989,9.1245,174.0,173.91,10.1794]
[1641015611192,9.1245,174.0,173.91,9.9194]
[1641015611990,8.8845,174.0,173.91,10.6794]
[1641015612389,8.8845,174.0,173.91,10.1794]
[1641015613188,9.3845,174.0,173.91,10.1794]
[1641015613512,9.3845,174.0,173.91,9.9194]
[1641015614288,8.8845,174.0,173.91,10.4194]
[1641015614489,8.8845,174.0,173.91,10.6794]
[1641015615694,8.6245,174.0,173.91,10.6794]
[1641015615894,1.2952,174.01,173.91,10.6794]
[1641015617097,1.5552,174.01,173.91,10.6794]
[1641015617696,10.1792,174.01,173.91,10.6794]
[1641015618498,1.5552,174.01,173.91,10.6794]
[1641015618698,85.9531,174.04,173.91,12.10609368]
[1641015618899,86.2131,174.04,173.91,12.10609368]
[1641015619300,77.5904,174.04,173.91,12.10609368]
[1641015620298,86.2128,174.04,173.91,12.10609368]
[1641015620698,85.9528,174.04,173.91,12.10609368]
[1641015621722,86.4528,174.04,173.91,12.10609368]
[1641015622124,86.2128,174.04,173.91,12.10609368]
[1641015623526,85.9528,174.04,173.91,12.10609368]
[1641015623925,85.9528,174.04,173.91,11.84609368]
[1641015624126,86.4528,174.04,173.91,10.4194]
[1641015624530,86.4528,174.04,173.91,9.9194]
[1641015624928,1.2942,174.03,173.91,1.2949]
[1641015625127,8.6251,173.99,173.91,1.2949]
[1641015625328,8.6251,173.99,173.91,1.5549]
[1641015625529,8.8851,173.99,173.91,1.5549]
[1641015626130,8.8851,173.99,173.91,1.2949]
[1641015627530,8.8851,173.99,173.91,1.5549]
[1641015627930,8.8851,173.99,173.91,1.2949]
[1641015628130,9.3851,173.99,173.91,1.2949]
[1641015630733,9.1251,173.99,173.91,1.2949]
[1641015630932,8.6251,173.99,173.91,1.2949]
[1641015632036,8.8851,173.99,173.91,1.2949]
[1641015632238,8.8851,173.99,173.9,8.625]
[1641015632437,9.3851,173.99,173.87,94.5]
[1641015633038,10.72404701,173.99,173.87,94.5]
[1641015633238,1.252,173.98,173.87,94.5]
[1641015633437,8.6279,173.93,173.87,119.77996449]
[1641015633637,8.6279,173.93,173.87,119.27996449]
[1641015633638,9.1279,173.93,173.87,119.27996449]
[1641015633837,8.8879,173.93,173.87,119.27996449]
[1641015634537,8.8879,173.93,173.87,119.53996449]
[1641015635940,8.8879,173.93,173.87,120.03996449]
[1641015636739,8.8879,173.93,173.87,119.53996449]
[1641015637539,8.8879,173.93,173.87,120.03996449]
[1641015638140,8.8879,173.93,173.87,119.77996449]
[1641015638541,8.8879,173.93,173.87,119.27996449]
[1641015638940,8.8879,173.93,173.87,119.77996449]
[1641015639341,8.8879,173.93,173.87,119.27996449]
[1641015639742,9.3879,173.93,173.87,119.27996449]
[1641015639944,8.8879,173.93,173.87,119.77996449]
[1641015640143,8.8879,173.93,173.87,119.27996449]
[1641015640745,8.8879,173.93,173.87,119.77996449]
[1641015640946,9.3879,173.93,173.87,119.77996449]
[1641015641145,9.3879,173.93,173.87,119.27996449]
[1641015641444,9.1279,173.93,173.87,119.27996449]
[1641015642047,8.6279,173.93,173.87,119.27996449]
[1641015642247,8.6279,173.93,173.87,24.77996449]
[1641015642647,8.6279,173.93,173.87,25.27996449]
[1641015642848,8.8879,173.93,173.87,25.27996449]
[1641015643051,8.8879,173.93,173.87,24.77996449]
[1641015644347,9.3879,173.93,173.87,24.77996449]
[1641015644549,8.8879,173.93,173.87,24.77996449]
[1641015644951,9.3879,173.93,173.87,24.77996449]
[1641015645150,9.3879,173.93,173.85,1.2405]
[1641015645349,9.3879,173.93,173.85,0.5]
[1641015645549,9.3879,173.93,173.83,84.3251]
[1641015645949,8.8879,173.93,173.83,86.1045]
[1641015646150,8.8879,173.93,173.84,30.4185648]
[1641015646350,8.8879,173.93,173.84,30.9185648]
[1641015646550,8.8879,173.93,173.84,39.3064648]
[1641015646951,8.8879,173.93,173.84,39.0464648]
[1641015647152,9.3879,173.93,173.84,39.0464648]
[1641015647352,9.3879,173.93,173.84,30.4185648]
[1641015647751,9.3879,173.93,173.84,39.0466648]
[1641015647953,9.3879,173.93,173.84,39.5466648]
[1641015648351,9.3879,173.93,173.84,39.0466648]
[1641015648552,9.3879,173.93,173.84,30.4185648]
[1641015648954,9.3879,173.93,173.84,30.9185648]
[1641015649153,9.3879,173.93,173.84,30.4185648]
[1641015649752,9.3879,173.93,173.84,30.9185648]
[1641015649953,9.3879,173.93,173.84,30.6785648]
[1641015650354,9.3879,173.93,173.84,31.1785648]
[1641015650554,9.3879,173.93,173.84,39.5465648]
[1641015650756,9.3879,173.93,173.84,39.0465648]
[1641015650957,9.3879,173.93,173.84,30.4185648]
[1641015651356,9.3879,173.93,173.84,30.9185648]